[Event "*** MasterClass Titled Tuesday Blitz"]
[Site "Chess.com"]
[Date "2017.10.03"]
[Round "7"]
[White "timator"]
[Black "Semetey"]
[Result "1-0"]
[WhiteElo "2406"]
[BlackElo "2410"]
[TimeControl "180+2"]
[EndTime "14:37:22 PDT"]
[Termination "timator won by checkmate"]

1. Nf3 {[%clk 0:03:01.9]} 1... d5 {[%clk 0:02:59.1]} 2. g3 {[%clk 0:03:03.2]}
2... Nf6 {[%clk 0:02:59.4]} 3. Bg2 {[%clk 0:02:54.9]} 3... c6 {[%clk 0:03:00.8]}
4. O-O {[%clk 0:02:55.7]} 4... Bg4 {[%clk 0:03:01.8]} 5. h3 {[%clk 0:02:56.6]}
5... Bh5 {[%clk 0:03:02.2]} 6. d4 {[%clk 0:02:57.1]} 6... Nbd7 {[%clk
0:03:02.9]} 7. c4 {[%clk 0:02:58.3]} 7... e6 {[%clk 0:03:04]} 8. Nc3 {[%clk
0:02:59.3]} 8... Be7 {[%clk 0:03:04.4]} 9. Ne5 {[%clk 0:02:54.1]} 9... Nxe5
{[%clk 0:02:55.5]} 10. dxe5 {[%clk 0:02:56]} 10... Nd7 {[%clk 0:02:57.1]} 11.
cxd5 {[%clk 0:02:57.6]} 11... cxd5 {[%clk 0:02:57.6]} 12. f4 {[%clk 0:02:56.5]}
12... Bg6 {[%clk 0:02:53.6]} 13. Be3 {[%clk 0:02:54.5]} 13... O-O {[%clk
0:02:53]} 14. Bf2 {[%clk 0:02:55.6]} 14... Bc5 {[%clk 0:02:37.5]} 15. e4 {[%clk
0:02:55]} 15... dxe4 {[%clk 0:02:20.2]} 16. Nxe4 {[%clk 0:02:54.1]} 16... Bxe4
{[%clk 0:02:14]} 17. Bxe4 {[%clk 0:02:56]} 17... Bxf2+ {[%clk 0:02:15.5]} 18.
Rxf2 {[%clk 0:02:57.6]} 18... Nc5 {[%clk 0:02:16.8]} 19. Bxh7+ {[%clk
0:02:47.8]} 19... Kxh7 {[%clk 0:02:16.6]} 20. Qc2+ {[%clk 0:02:48.8]} 20... Kg8
{[%clk 0:02:17.5]} 21. Qxc5 {[%clk 0:02:49.3]} 21... Qd3 {[%clk 0:02:14.8]} 22.
Qc3 {[%clk 0:02:44.8]} 22... Qxc3 {[%clk 0:02:14.9]} 23. bxc3 {[%clk 0:02:45.9]}
23... Rac8 {[%clk 0:02:16.5]} 24. Rc1 {[%clk 0:02:39.2]} 24... Rfd8 {[%clk
0:02:17.2]} 25. Rfc2 {[%clk 0:02:32.1]} 25... Rc4 {[%clk 0:02:17.4]} 26. Kf2
{[%clk 0:02:32.1]} 26... Rd3 {[%clk 0:02:17.6]} 27. h4 {[%clk 0:02:25.9]} 27...
g6 {[%clk 0:02:18.6]} 28. Kg2 {[%clk 0:02:18.9]} 28... b5 {[%clk 0:02:19.2]} 29.
Kh3 {[%clk 0:02:17.6]} 29... a6 {[%clk 0:02:19.9]} 30. Kg4 {[%clk 0:02:04.7]}
30... Kg7 {[%clk 0:02:20.5]} 31. Kh3 {[%clk 0:01:52.4]} 31... Rxf4 {[%clk
0:02:20.7]} 32. c4 {[%clk 0:01:50.4]} 32... bxc4 {[%clk 0:02:10.4]} 33. Rxc4
{[%clk 0:01:51.1]} 33... Rff3 {[%clk 0:02:08.3]} 34. Rg1 {[%clk 0:01:49.3]}
34... Ra3 {[%clk 0:02:09]} 35. Rg2 {[%clk 0:01:50.2]} 35... Rfe3 {[%clk
0:02:09]} 36. Rc5 {[%clk 0:01:50.4]} 36... Ra4 {[%clk 0:02:02]} 37. Rf2 {[%clk
0:01:36.1]} 37... Raa3 {[%clk 0:01:59.8]} 38. Rg2 {[%clk 0:01:37.3]} 38... g5
{[%clk 0:01:54.4]} 39. hxg5 {[%clk 0:00:55.1]} 39... Kg6 {[%clk 0:01:55.4]} 40.
Kh4 {[%clk 0:00:52.8]} 40... Ra4+ {[%clk 0:01:45.1]} 41. Kh3 {[%clk 0:00:47.7]}
41... Raa3 {[%clk 0:01:42.8]} 42. Kh4 {[%clk 0:00:48.1]} 42... Re4+ {[%clk
0:01:30.7]} 43. Kh3 {[%clk 0:00:48]} 43... Kxg5 {[%clk 0:01:32]} 44. Rf2 {[%clk
0:00:42.6]} 44... Ree3 {[%clk 0:01:32.7]} 45. Rxf7 {[%clk 0:00:43.6]} 45...
Rxg3+ {[%clk 0:01:32.1]} 46. Kh2 {[%clk 0:00:44.8]} 46... Rge3 {[%clk
0:01:06.4]} 47. Rc2 {[%clk 0:00:44.7]} 47... Rxe5 {[%clk 0:01:03.8]} 48. Rg2+
{[%clk 0:00:46]} 48... Kh6 {[%clk 0:01:05]} 49. Rf6+ {[%clk 0:00:45.4]} 49...
Kh7 {[%clk 0:01:02.4]} 50. Rf7+ {[%clk 0:00:46.7]} 50... Kh8 {[%clk 0:01:02.7]}
51. Rf8+ {[%clk 0:00:47.7]} 51... Kh7 {[%clk 0:01:04.2]} 52. Rf7+ {[%clk
0:00:49.4]} 52... Kh6 {[%clk 0:01:05.7]} 53. Rf6+ {[%clk 0:00:50.7]} 53... Kh5
{[%clk 0:01:04.2]} 54. Rf8 {[%clk 0:00:38.9]} 54... Kh4 {[%clk 0:01:00]} 55.
Rf4+ {[%clk 0:00:33.1]} 55... Kh5 {[%clk 0:01:00]} 56. Rf8 {[%clk 0:00:35]}
56... Kh4 {[%clk 0:00:54.3]} 57. Rf4+ {[%clk 0:00:36.5]} 57... Kh5 {[%clk
0:00:55.4]} 58. Rf8 {[%clk 0:00:38.4]} 58... Kh4 {[%clk 0:00:56.4]} 59. Rf4+
{[%clk 0:00:39.5]} 59... Kh5 {[%clk 0:00:56.6]} 60. Rf8 {[%clk 0:00:41.4]} 60...
Kh6 {[%clk 0:00:57.5]} 61. Rh8# {[%clk 0:00:42.1]} 1-0

[Event "*** MasterClass Titled Tuesday Blitz"]
[Site "Chess.com"]
[Date "2017.10.03"]
[Round "7"]
[White "bancsoo"]
[Black "Konavets"]
[Result "0-1"]
[WhiteElo "2560"]
[BlackElo "2783"]
[TimeControl "180+2"]
[EndTime "14:37:24 PDT"]
[Termination "Konavets won on time"]

1. Nf3 {[%clk 0:02:59.7]} 1... Nf6 {[%clk 0:02:18.2]} 2. c4 {[%clk 0:02:59.1]}
2... e6 {[%clk 0:02:18.4]} 3. g3 {[%clk 0:02:59.8]} 3... d5 {[%clk 0:02:12.6]}
4. Bg2 {[%clk 0:03:01.3]} 4... dxc4 {[%clk 0:02:05.3]} 5. Qa4+ {[%clk
0:03:01.1]} 5... Bd7 {[%clk 0:02:05.6]} 6. Qxc4 {[%clk 0:03:01.6]} 6... c5
{[%clk 0:02:02]} 7. Ne5 {[%clk 0:03:02.7]} 7... Qc8 {[%clk 0:02:02.6]} 8. Qd3
{[%clk 0:03:03.8]} 8... Nc6 {[%clk 0:01:59.7]} 9. Nxd7 {[%clk 0:03:04.5]} 9...
Nxd7 {[%clk 0:02:01.6]} 10. Qb5 {[%clk 0:03:04.9]} 10... Nde5 {[%clk 0:01:54.1]}
11. f4 {[%clk 0:03:05.2]} 11... a6 {[%clk 0:01:55.3]} 12. Qa4 {[%clk 0:03:05.6]}
12... b5 {[%clk 0:01:55.1]} 13. Qe4 {[%clk 0:02:59.2]} 13... f5 {[%clk
0:01:52.6]} 14. Qc2 {[%clk 0:02:33.9]} 14... Ng4 {[%clk 0:01:25.7]} 15. a4
{[%clk 0:02:24.4]} 15... Rb8 {[%clk 0:00:29.2]} 16. axb5 {[%clk 0:02:23.4]}
16... axb5 {[%clk 0:00:31.1]} 17. Nc3 {[%clk 0:02:06.4]} 17... Nd4 {[%clk
0:00:31.6]} 18. Qd1 {[%clk 0:02:05.1]} 18... c4 {[%clk 0:00:33]} 19. e3 {[%clk
0:01:46.6]} 19... Nb3 {[%clk 0:00:31.2]} 20. Rb1 {[%clk 0:01:25.8]} 20... Be7
{[%clk 0:00:24.8]} 21. O-O {[%clk 0:01:22.1]} 21... O-O {[%clk 0:00:25.5]} 22.
d4 {[%clk 0:01:06.4]} 22... Rd8 {[%clk 0:00:22.8]} 23. Qc2 {[%clk 0:01:06.1]}
23... b4 {[%clk 0:00:15.7]} 24. Ne2 {[%clk 0:01:04.2]} 24... Qa6 {[%clk
0:00:16.9]} 25. Bd2 {[%clk 0:00:49.6]} 25... Rbc8 {[%clk 0:00:10.5]} 26. Rfd1
{[%clk 0:00:33.7]} 26... h5 {[%clk 0:00:09.1]} 27. h3 {[%clk 0:00:34.1]} 27...
Nf6 {[%clk 0:00:10]} 28. Be1 {[%clk 0:00:35.8]} 28... Nd5 {[%clk 0:00:09.8]} 29.
Bf2 {[%clk 0:00:37]} 29... Nf6 {[%clk 0:00:07.7]} 30. Nc1 {[%clk 0:00:33.5]}
30... Na5 {[%clk 0:00:06.3]} 31. Qe2 {[%clk 0:00:23.5]} 31... Qb6 {[%clk
0:00:05]} 32. Bf3 {[%clk 0:00:21.3]} 32... g6 {[%clk 0:00:05.6]} 33. g4 {[%clk
0:00:20.7]} 33... hxg4 {[%clk 0:00:06.3]} 34. hxg4 {[%clk 0:00:22]} 34... Kf7
{[%clk 0:00:08.2]} 35. g5 {[%clk 0:00:20.8]} 35... Nd5 {[%clk 0:00:08.9]} 36.
Kg2 {[%clk 0:00:21.4]} 36... Rh8 {[%clk 0:00:09.5]} 37. Qc2 {[%clk 0:00:02.9]}
37... b3 {[%clk 0:00:09.8]} 38. Qd2 {[%clk 0:00:03.9]} 38... c3 {[%clk
0:00:11.3]} 39. bxc3 {[%clk 0:00:04.7]} 39... Nxc3 {[%clk 0:00:13.2]} 40. Nd3
{[%clk 0:00:06]} 40... Nxb1 {[%clk 0:00:14.1]} 41. Ne5+ {[%clk 0:00:06.7]} 41...
Kg7 {[%clk 0:00:15.6]} 42. Rxb1 {[%clk 0:00:08.2]} 42... Nc4 {[%clk 0:00:17.2]}
43. Nxc4 {[%clk 0:00:03.9]} 43... Rxc4 {[%clk 0:00:19.1]} 44. d5 {[%clk
0:00:05.6]} 44... Rc2 {[%clk 0:00:19.2]} 45. Qd3 {[%clk 0:00:03.9]} 45... Rd8
{[%clk 0:00:18]} 46. Rxb3 {[%clk 0:00:03.3]} 46... Qc5 {[%clk 0:00:19.3]} 0-1

[Event "*** MasterClass Titled Tuesday Blitz"]
[Site "Chess.com"]
[Date "2017.10.03"]
[Round "7"]
[White "MatthewG-p4p"]
[Black "51616516516"]
[Result "1-0"]
[WhiteElo "2580"]
[BlackElo "2056"]
[TimeControl "180+2"]
[EndTime "14:37:27 PDT"]
[Termination "MatthewG-p4p won by resignation"]

1. c4 {[%clk 0:02:57.9]} 1... Nf6 {[%clk 0:02:59.7]} 2. Nc3 {[%clk 0:02:57.8]}
2... g6 {[%clk 0:02:58.5]} 3. e4 {[%clk 0:02:58.6]} 3... d6 {[%clk 0:02:59.6]}
4. g3 {[%clk 0:02:59.6]} 4... Bg7 {[%clk 0:03:00.7]} 5. Bg2 {[%clk 0:03:00.7]}
5... O-O {[%clk 0:03:02.1]} 6. Nge2 {[%clk 0:03:02.3]} 6... c5 {[%clk
0:02:57.6]} 7. O-O {[%clk 0:03:02.5]} 7... Nc6 {[%clk 0:02:59]} 8. d3 {[%clk
0:03:02.3]} 8... e5 {[%clk 0:02:51.5]} 9. Rb1 {[%clk 0:03:02.4]} 9... Rb8 {[%clk
0:02:51.7]} 10. a3 {[%clk 0:03:03.3]} 10... a6 {[%clk 0:02:46.6]} 11. b4 {[%clk
0:03:03.6]} 11... cxb4 {[%clk 0:02:47.7]} 12. axb4 {[%clk 0:03:04.9]} 12... b5
{[%clk 0:02:49.3]} 13. cxb5 {[%clk 0:03:00.1]} 13... axb5 {[%clk 0:02:49.4]} 14.
h3 {[%clk 0:03:01.2]} 14... Be6 {[%clk 0:02:39.2]} 15. f4 {[%clk 0:02:58.9]}
15... exf4 {[%clk 0:02:37.2]} 16. Nxf4 {[%clk 0:02:54.8]} 16... Ne5 {[%clk
0:01:52.7]} 17. d4 {[%clk 0:02:51.8]} 17... Nc4 {[%clk 0:01:47.8]} 18. Qd3
{[%clk 0:02:52.4]} 18... Qe8 {[%clk 0:01:19.6]} 19. Nxe6 {[%clk 0:02:44.2]}
19... fxe6 {[%clk 0:01:19.6]} 20. Bg5 {[%clk 0:02:41.7]} 20... h6 {[%clk
0:01:14.2]} 21. Bc1 {[%clk 0:02:25.2]} 21... Nh5 {[%clk 0:01:03.4]} 22. Rxf8+
{[%clk 0:02:19]} 22... Bxf8 {[%clk 0:00:31.4]} 23. g4 {[%clk 0:02:16.9]} 23...
Nf6 {[%clk 0:00:30.2]} 24. g5 {[%clk 0:02:18.3]} 24... hxg5 {[%clk 0:00:29.2]}
25. Bxg5 {[%clk 0:02:20.2]} 25... Nh5 {[%clk 0:00:28.5]} 26. Rf1 {[%clk
0:02:16.9]} 26... Bg7 {[%clk 0:00:29.2]} 27. h4 {[%clk 0:02:14.9]} 27... Qd7
{[%clk 0:00:24.8]} 28. Bh3 {[%clk 0:02:13.6]} 28... Qa7 {[%clk 0:00:19.3]} 29.
Bxe6+ {[%clk 0:02:10.8]} 29... Kh7 {[%clk 0:00:19.8]} 30. Ne2 {[%clk 0:02:03.3]}
30... Nb2 {[%clk 0:00:13.2]} 31. Qc3 {[%clk 0:01:53.6]} 31... Na4 {[%clk
0:00:12.7]} 32. Qe3 {[%clk 0:01:54.1]} 32... Re8 {[%clk 0:00:10]} 33. Rf7 {[%clk
0:01:54.6]} 33... Qb6 {[%clk 0:00:09.3]} 34. Bg4 {[%clk 0:01:55.5]} 34... Rf8
{[%clk 0:00:08.5]} 35. Rxf8 {[%clk 0:01:54.5]} 35... Bxf8 {[%clk 0:00:09.4]} 36.
Bxh5 {[%clk 0:01:56]} 36... gxh5 {[%clk 0:00:10.1]} 37. Qf3 {[%clk 0:01:57.7]}
37... Bg7 {[%clk 0:00:05.6]} 38. Qxh5+ {[%clk 0:01:58.9]} 38... Kg8 {[%clk
0:00:05.9]} 39. Qg6 {[%clk 0:02:00.1]} 39... Qb7 {[%clk 0:00:02.4]} 40. h5
{[%clk 0:02:00.6]} 40... Qf7 {[%clk 0:00:02.7]} 41. Qxf7+ {[%clk 0:01:49.7]}
41... Kxf7 {[%clk 0:00:04.6]} 42. Kf2 {[%clk 0:01:48.5]} 42... Nb2 {[%clk
0:00:05.1]} 43. Ke3 {[%clk 0:01:49.1]} 43... Nc4+ {[%clk 0:00:04]} 44. Kf4
{[%clk 0:01:49]} 44... Nb2 {[%clk 0:00:04.1]} 45. h6 {[%clk 0:01:49.9]} 45...
Bh8 {[%clk 0:00:02.9]} 46. Kf5 {[%clk 0:01:50.9]} 46... Nd3 {[%clk 0:00:03.1]}
47. Nf4 {[%clk 0:01:48.6]} 47... Nxb4 {[%clk 0:00:03.1]} 48. e5 {[%clk
0:01:49.6]} 48... dxe5 {[%clk 0:00:03.7]} 49. dxe5 {[%clk 0:01:51]} 49... Nc6
{[%clk 0:00:05.2]} 50. e6+ {[%clk 0:01:52.3]} 50... Ke8 {[%clk 0:00:06.6]} 51.
Ng6 {[%clk 0:01:53]} 51... Nd4+ {[%clk 0:00:07]} 52. Kg4 {[%clk 0:01:50.9]}
52... Nxe6 {[%clk 0:00:05.2]} 53. Nxh8 {[%clk 0:01:51.9]} 53... Kf8 {[%clk
0:00:04.4]} 54. Ng6+ {[%clk 0:01:51.1]} 54... Kg8 {[%clk 0:00:05.6]} 55. Bd2
{[%clk 0:01:49.5]} 55... Nc7 {[%clk 0:00:03.7]} 56. Kf5 {[%clk 0:01:49.9]} 56...
Ne8 {[%clk 0:00:04.4]} 57. Nf4 {[%clk 0:01:47.8]} 57... Kh7 {[%clk 0:00:05.1]}
58. Nd5 {[%clk 0:01:48.9]} 58... Nd6+ {[%clk 0:00:05.6]} 59. Ke6 {[%clk
0:01:49.7]} 59... Ne4 {[%clk 0:00:06.5]} 60. Nf6+ {[%clk 0:01:50.6]} 60... Nxf6
{[%clk 0:00:04.3]} 61. Kxf6 {[%clk 0:01:52.5]} 61... b4 {[%clk 0:00:05.9]} 62.
Kg5 {[%clk 0:01:53.8]} 62... b3 {[%clk 0:00:07.1]} 63. Bc3 {[%clk 0:01:55.4]}
63... Kg8 {[%clk 0:00:03.9]} 64. Kg6 {[%clk 0:01:56.3]} 64... Kf8 {[%clk
0:00:04]} 65. h7 {[%clk 0:01:56.8]} 1-0

[Event "*** MasterClass Titled Tuesday Blitz"]
[Site "Chess.com"]
[Date "2017.10.03"]
[Round "7"]
[White "catalin009"]
[Black "Kouzari"]
[Result "1-0"]
[WhiteElo "2376"]
[BlackElo "2529"]
[TimeControl "180+2"]
[EndTime "14:37:30 PDT"]
[Termination "catalin009 won on time"]

1. Nf3 {[%clk 0:03:00.7]} 1... d5 {[%clk 0:03:00.3]} 2. g3 {[%clk 0:03:01.1]}
2... c6 {[%clk 0:03:02.2]} 3. Bg2 {[%clk 0:03:01.1]} 3... Nf6 {[%clk 0:03:04.1]}
4. O-O {[%clk 0:03:02.4]} 4... Bf5 {[%clk 0:03:06]} 5. d3 {[%clk 0:03:03]} 5...
h6 {[%clk 0:03:07.4]} 6. Qe1 {[%clk 0:03:01]} 6... e6 {[%clk 0:03:08.8]} 7. Nbd2
{[%clk 0:03:01.5]} 7... Be7 {[%clk 0:03:10.2]} 8. e4 {[%clk 0:03:02.1]} 8... Bh7
{[%clk 0:03:11.8]} 9. a4 {[%clk 0:03:02.4]} 9... a5 {[%clk 0:03:12.7]} 10. Ne5
{[%clk 0:02:34.9]} 10... Nbd7 {[%clk 0:03:10]} 11. Nxd7 {[%clk 0:02:36.1]} 11...
Nxd7 {[%clk 0:03:10.4]} 12. Nb3 {[%clk 0:02:37.7]} 12... O-O {[%clk 0:03:08.9]}
13. Bd2 {[%clk 0:02:37.8]} 13... b6 {[%clk 0:02:59.4]} 14. Bc3 {[%clk
0:02:26.8]} 14... Nc5 {[%clk 0:02:59.1]} 15. Nxc5 {[%clk 0:02:21.6]} 15... Bxc5
{[%clk 0:02:48.9]} 16. Qe2 {[%clk 0:02:11.9]} 16... Re8 {[%clk 0:02:22.8]} 17.
Qg4 {[%clk 0:02:08.8]} 17... Qg5 {[%clk 0:02:22.2]} 18. Qxg5 {[%clk 0:02:04.1]}
18... hxg5 {[%clk 0:02:22.7]} 19. h3 {[%clk 0:02:04.2]} 19... f6 {[%clk
0:02:09.7]} 20. Rfe1 {[%clk 0:01:59.7]} 20... Bg6 {[%clk 0:02:10.3]} 21. Bd2
{[%clk 0:01:33.2]} 21... Rad8 {[%clk 0:02:02.2]} 22. Rab1 {[%clk 0:01:30.7]}
22... dxe4 {[%clk 0:01:56.8]} 23. Bxe4 {[%clk 0:01:30.6]} 23... Bxe4 {[%clk
0:01:57.9]} 24. Rxe4 {[%clk 0:01:32.5]} 24... e5 {[%clk 0:01:59.1]} 25. b4
{[%clk 0:01:31.6]} 25... axb4 {[%clk 0:02:00.2]} 26. Bxb4 {[%clk 0:01:32.4]}
26... Rd5 {[%clk 0:01:49.6]} 27. Rc4 {[%clk 0:01:23.4]} 27... Bd4 {[%clk
0:01:16.3]} 28. Rxc6 {[%clk 0:01:18.4]} 28... e4 {[%clk 0:01:16.6]} 29. c3
{[%clk 0:01:03.9]} 29... Bxf2+ {[%clk 0:01:16.9]} 30. Kxf2 {[%clk 0:01:04.2]}
30... exd3 {[%clk 0:01:17.8]} 31. g4 {[%clk 0:00:09.5]} 31... Re2+ {[%clk
0:01:17.5]} 32. Kf3 {[%clk 0:00:11]} 32... Rh2 {[%clk 0:01:18.6]} 33. Rd1 {[%clk
0:00:09.7]} 33... Rxh3+ {[%clk 0:01:15.6]} 34. Kg2 {[%clk 0:00:11.1]} 34... Re3
{[%clk 0:01:10.4]} 35. Rxb6 {[%clk 0:00:09.2]} 35... Re4 {[%clk 0:01:04.3]} 36.
a5 {[%clk 0:00:10.5]} 36... Rxg4+ {[%clk 0:01:05]} 37. Kf3 {[%clk 0:00:12.1]}
37... Rf4+ {[%clk 0:01:06.4]} 38. Ke3 {[%clk 0:00:13.3]} 38... Re5+ {[%clk
0:01:04.8]} 39. Kxd3 {[%clk 0:00:11.7]} 39... Rd5+ {[%clk 0:01:06.1]} 40. Kc2
{[%clk 0:00:12.9]} 40... Rf2+ {[%clk 0:01:06.5]} 41. Kb3 {[%clk 0:00:13.8]}
41... Rxd1 {[%clk 0:01:06.9]} 42. a6 {[%clk 0:00:15.7]} 42... Ra1 {[%clk
0:01:07.6]} 43. Kc4 {[%clk 0:00:12.1]} 1-0

[Event "*** MasterClass Titled Tuesday Blitz"]
[Site "Chess.com"]
[Date "2017.10.03"]
[Round "7"]
[White "chessking2151"]
[Black "TheFlaminGM"]
[Result "0-1"]
[WhiteElo "2381"]
[BlackElo "2584"]
[TimeControl "180+2"]
[EndTime "14:37:38 PDT"]
[Termination "TheFlaminGM won by resignation"]

1. e4 {[%clk 0:03:01.9]} 1... d6 {[%clk 0:03:01]} 2. d4 {[%clk 0:03:02.5]} 2...
Nf6 {[%clk 0:03:02.6]} 3. Nc3 {[%clk 0:03:03.6]} 3... e5 {[%clk 0:03:04.2]} 4.
dxe5 {[%clk 0:03:03.9]} 4... dxe5 {[%clk 0:03:06.1]} 5. Qxd8+ {[%clk 0:03:05.3]}
5... Kxd8 {[%clk 0:03:08]} 6. Bc4 {[%clk 0:03:06.9]} 6... Ke8 {[%clk 0:03:08.6]}
7. Nf3 {[%clk 0:03:07.5]} 7... Bd6 {[%clk 0:03:09.4]} 8. Bg5 {[%clk 0:03:08.6]}
8... Nbd7 {[%clk 0:03:10]} 9. O-O-O {[%clk 0:03:08.8]} 9... a6 {[%clk
0:03:11.7]} 10. a4 {[%clk 0:03:08.8]} 10... h6 {[%clk 0:03:12.5]} 11. Bh4 {[%clk
0:03:06.6]} 11... b6 {[%clk 0:03:12.1]} 12. Rhe1 {[%clk 0:03:06]} 12... Bb7
{[%clk 0:03:12.6]} 13. Nd5 {[%clk 0:02:54.7]} 13... Nxd5 {[%clk 0:02:38.6]} 14.
Bxd5 {[%clk 0:02:53]} 14... Rb8 {[%clk 0:02:39.1]} 15. Bg3 {[%clk 0:02:48.8]}
15... b5 {[%clk 0:02:35.1]} 16. axb5 {[%clk 0:02:47.9]} 16... axb5 {[%clk
0:02:37]} 17. Nh4 {[%clk 0:02:47.5]} 17... g6 {[%clk 0:02:36.7]} 18. Nf3 {[%clk
0:02:47.5]} 18... Ke7 {[%clk 0:02:37.7]} 19. Bxb7 {[%clk 0:02:43.4]} 19... Rxb7
{[%clk 0:02:38.9]} 20. Rd5 {[%clk 0:02:44.7]} 20... Ke6 {[%clk 0:02:31.8]} 21.
c3 {[%clk 0:02:37.3]} 21... Ra8 {[%clk 0:02:22.8]} 22. Kc2 {[%clk 0:02:37.2]}
22... g5 {[%clk 0:02:23.6]} 23. Nd2 {[%clk 0:02:29.4]} 23... Nb6 {[%clk
0:02:08.2]} 24. Rxb5 {[%clk 0:02:03.3]} 24... Rba7 {[%clk 0:02:08.6]} 25. f3
{[%clk 0:01:44.6]} 25... Nd7 {[%clk 0:01:37.7]} 26. Bf2 {[%clk 0:01:22.5]} 26...
Ra1 {[%clk 0:01:36]} 27. Rb1 {[%clk 0:01:23.2]} 27... h5 {[%clk 0:01:32.9]} 28.
Nb3 {[%clk 0:01:14.9]} 28... Rxb1 {[%clk 0:01:33.6]} 29. Kxb1 {[%clk 0:01:16.8]}
29... g4 {[%clk 0:01:33.7]} 30. c4 {[%clk 0:01:08.3]} 30... gxf3 {[%clk
0:01:29.4]} 31. gxf3 {[%clk 0:01:03.9]} 31... Rg8 {[%clk 0:01:30.8]} 32. Bg3
{[%clk 0:01:02.2]} 32... Be7 {[%clk 0:01:28.1]} 33. f4 {[%clk 0:00:39.8]} 33...
Rg4 {[%clk 0:01:28.1]} 34. f5+ {[%clk 0:00:16.1]} 34... Kf6 {[%clk 0:01:28.8]}
35. Rd5 {[%clk 0:00:17.2]} 35... h4 {[%clk 0:01:21.8]} 36. Bxh4+ {[%clk
0:00:11.9]} 36... Rxh4 {[%clk 0:01:18.8]} 37. Rxd7 {[%clk 0:00:13.2]} 37... Rxe4
{[%clk 0:01:19.8]} 38. Rxc7 {[%clk 0:00:14.5]} 38... Rh4 {[%clk 0:01:16.5]} 39.
c5 {[%clk 0:00:12.2]} 39... e4 {[%clk 0:01:17.9]} 40. Nd4 {[%clk 0:00:10.2]}
40... e3 {[%clk 0:01:16.4]} 41. Ne2 {[%clk 0:00:10.8]} 41... Rxh2 {[%clk
0:01:14.2]} 42. Nf4 {[%clk 0:00:11.8]} 42... e2 {[%clk 0:01:10.6]} 43. Nd5+
{[%clk 0:00:11.1]} 43... Kxf5 {[%clk 0:01:07.8]} 44. Rxe7 {[%clk 0:00:08.4]}
44... Rh1+ {[%clk 0:01:09.1]} 45. Kc2 {[%clk 0:00:09.7]} 45... e1=Q {[%clk
0:01:11]} 46. Rxe1 {[%clk 0:00:09.1]} 46... Rxe1 {[%clk 0:01:12.9]} 47. c6
{[%clk 0:00:10]} 47... Re6 {[%clk 0:01:05.9]} 48. c7 {[%clk 0:00:09.4]} 48...
Rc6+ {[%clk 0:01:02]} 49. Kd3 {[%clk 0:00:10.7]} 49... Ke5 {[%clk 0:01:02.7]}
50. Ne3 {[%clk 0:00:05.4]} 50... Rxc7 {[%clk 0:01:03.8]} 51. Nc4+ {[%clk
0:00:06.8]} 51... Kf4 {[%clk 0:01:02.6]} 52. b4 {[%clk 0:00:07.6]} 52... Rd7+
{[%clk 0:00:48]} 53. Kc3 {[%clk 0:00:08.3]} 53... f5 {[%clk 0:00:49.3]} 54. b5
{[%clk 0:00:09.6]} 54... Kg3 {[%clk 0:00:45.5]} 55. b6 {[%clk 0:00:08.1]} 55...
f4 {[%clk 0:00:46.9]} 56. Ne5 {[%clk 0:00:09.2]} 56... Rb7 {[%clk 0:00:43.7]}
57. Nc4 {[%clk 0:00:07.6]} 57... f3 {[%clk 0:00:44.8]} 58. Kd2 {[%clk
0:00:06.9]} 58... f2 {[%clk 0:00:43.6]} 59. Ke2 {[%clk 0:00:08.1]} 59... Re7+
{[%clk 0:00:44.5]} 0-1

[Event "*** MasterClass Titled Tuesday Blitz"]
[Site "Chess.com"]
[Date "2017.10.03"]
[Round "7"]
[White "JSPrepz"]
[Black "Angry_Serb"]
[Result "1-0"]
[WhiteElo "2531"]
[BlackElo "2389"]
[TimeControl "180+2"]
[EndTime "14:37:41 PDT"]
[Termination "JSPrepz won on time"]

1. e4 {[%clk 0:03:01.1]} 1... e5 {[%clk 0:02:45.1]} 2. Nf3 {[%clk 0:02:55.2]}
2... Nc6 {[%clk 0:02:42.1]} 3. Nc3 {[%clk 0:02:56.7]} 3... Nf6 {[%clk
0:02:14.8]} 4. a3 {[%clk 0:02:57.1]} 4... d5 {[%clk 0:02:11.8]} 5. Bb5 {[%clk
0:02:57]} 5... d4 {[%clk 0:02:05.6]} 6. Ne2 {[%clk 0:02:56.8]} 6... Bd6 {[%clk
0:02:05.5]} 7. d3 {[%clk 0:02:56.9]} 7... O-O {[%clk 0:02:05.4]} 8. O-O {[%clk
0:02:57.9]} 8... Ne7 {[%clk 0:02:01.8]} 9. c3 {[%clk 0:02:55.2]} 9... a6 {[%clk
0:01:58.6]} 10. Bc4 {[%clk 0:02:54.7]} 10... b5 {[%clk 0:01:59.9]} 11. Ba2
{[%clk 0:02:55.4]} 11... c5 {[%clk 0:02:01.5]} 12. cxd4 {[%clk 0:02:56.1]} 12...
cxd4 {[%clk 0:01:58]} 13. Bd2 {[%clk 0:02:51.7]} 13... Ng6 {[%clk 0:01:56.7]}
14. Ng3 {[%clk 0:02:46.9]} 14... a5 {[%clk 0:01:51.2]} 15. Rc1 {[%clk
0:02:47.1]} 15... a4 {[%clk 0:01:51]} 16. Rc6 {[%clk 0:02:32.7]} 16... Ne7
{[%clk 0:01:26.4]} 17. Rc2 {[%clk 0:02:22.6]} 17... Be6 {[%clk 0:01:27.6]} 18.
Bxe6 {[%clk 0:02:20.9]} 18... fxe6 {[%clk 0:01:29.5]} 19. Qb1 {[%clk 0:02:20.2]}
19... Qd7 {[%clk 0:01:25.2]} 20. Rfc1 {[%clk 0:02:17]} 20... Rfb8 {[%clk
0:01:25.5]} 21. Qa2 {[%clk 0:02:15]} 21... h6 {[%clk 0:01:25.6]} 22. Bb4 {[%clk
0:02:13.1]} 22... Rc8 {[%clk 0:01:07.8]} 23. Bxd6 {[%clk 0:01:56.2]} 23... Rxc2
{[%clk 0:01:08.1]} 24. Rxc2 {[%clk 0:01:58.1]} 24... Qxd6 {[%clk 0:01:09.6]} 25.
Nf5 {[%clk 0:01:53.7]} 25... Nxf5 {[%clk 0:01:09.1]} 26. exf5 {[%clk 0:01:54.8]}
26... Nd5 {[%clk 0:01:10.8]} 27. fxe6 {[%clk 0:01:55.6]} 27... Qxe6 {[%clk
0:01:12.7]} 28. Re2 {[%clk 0:01:53.3]} 28... Rd8 {[%clk 0:01:10.5]} 29. Rxe5
{[%clk 0:01:53.3]} 29... Qc6 {[%clk 0:01:09.3]} 30. g3 {[%clk 0:01:38.6]} 30...
Kh7 {[%clk 0:01:08]} 31. Nxd4 {[%clk 0:01:35]} 31... Qc1+ {[%clk 0:00:55.8]} 32.
Kg2 {[%clk 0:01:36.2]} 32... Nf6 {[%clk 0:00:57.4]} 33. Ne6 {[%clk 0:01:33.3]}
33... Rxd3 {[%clk 0:00:54.1]} 34. Nf8+ {[%clk 0:01:30]} 34... Kh8 {[%clk
0:00:55.5]} 35. Qe6 {[%clk 0:01:21.9]} 35... Rd1 {[%clk 0:00:44.6]} 36. Ng6+
{[%clk 0:01:22.8]} 36... Kh7 {[%clk 0:00:45.5]} 37. Nf8+ {[%clk 0:01:24.7]}
37... Kh8 {[%clk 0:00:47]} 38. Kh3 {[%clk 0:01:16.3]} 38... Rd4 {[%clk
0:00:25.4]} 39. Re1 {[%clk 0:01:00.9]} 39... Qxb2 {[%clk 0:00:26.5]} 40. Ng6+
{[%clk 0:00:59.3]} 40... Kh7 {[%clk 0:00:27.3]} 41. Qf5 {[%clk 0:01:00]} 41...
Rd5 {[%clk 0:00:16.6]} 42. Nf8+ {[%clk 0:00:45.8]} 42... Kg8 {[%clk 0:00:16.4]}
43. Qc8 {[%clk 0:00:44.7]} 43... Kf7 {[%clk 0:00:12.3]} 44. Ne6 {[%clk
0:00:34.5]} 44... Qxa3 {[%clk 0:00:08.4]} 45. Nf4 {[%clk 0:00:21.8]} 45... Rd7
{[%clk 0:00:08.1]} 46. Qc6 {[%clk 0:00:13.8]} 46... Qd6 {[%clk 0:00:06.7]} 47.
Qxb5 {[%clk 0:00:14.9]} 47... a3 {[%clk 0:00:07.7]} 48. Qb3+ {[%clk 0:00:15.8]}
48... Nd5 {[%clk 0:00:06.7]} 49. Rd1 {[%clk 0:00:17.3]} 1-0